bitfinex-derivatives/quotes_BTCF0:USTF0_20240910
["timestamp","ask_amount","ask_price","bid_price","bid_amount"]
[1725989260398,0.43225012,57165.0,57164.0,0.05227838]
[1725989260603,0.34478812,57165.0,57164.0,0.05227838]
[1725989261311,0.34478812,57165.0,57164.0,0.0004]
[1725989269318,0.34478712,57165.0,57164.0,0.0004]
[1725989270113,0.34478712,57165.0,57164.0,0.087863]
[1725989273208,0.14478712,57165.0,57164.0,0.087863]
[1725989273615,0.34478712,57165.0,57164.0,0.087863]
[1725989273820,0.34478712,57165.0,57164.0,0.1571512]
[1725989275414,0.34478712,57165.0,57164.0,0.087863]
[1725989275614,0.34478712,57165.0,57164.0,0.1571512]
[1725989276317,0.34478712,57165.0,57164.0,0.087863]
[1725989276514,0.34478712,57165.0,57164.0,0.1571512]
[1725989277024,0.34478712,57165.0,57164.0,0.0696882]
[1725989277317,0.34478712,57165.0,57164.0,0.0004]
[1725989277521,0.43224812,57165.0,57164.0,0.0696882]
[1725989277717,0.087475,57156.0,57155.0,0.08636694]
[1725989278015,0.24410619,57156.0,57155.0,0.0004]
[1725989278218,0.24410619,57156.0,57155.0,0.06978859]
[1725989278415,0.33158119,57156.0,57155.0,0.0004]
[1725989278615,0.33158119,57156.0,57155.0,0.05243957]
[1725989278821,0.33158119,57156.0,57155.0,0.05203957]
[1725989279121,0.087478,57154.0,57153.0,0.06938859]
[1725989279307,0.087878,57154.0,57153.0,0.06938859]
[1725989279513,0.08748,57153.0,57152.0,0.06938859]
[1725989279716,0.28788,57153.0,57152.0,0.06938859]
[1725989280219,0.087483,57151.0,57150.0,0.087484]
[1725989280520,0.087483,57151.0,57142.0,0.087496]
[1725989280521,0.0004,57151.0,57142.0,0.087496]
[1725989280711,0.0004,57143.0,57142.0,0.287496]
[1725989280919,0.0004,57143.0,57142.0,0.987488]
[1725989281113,0.10487915,57151.0,57143.0,0.087495]
[1725989281421,0.10487915,57151.0,57150.0,0.087484]
[1725989282014,0.10487915,57152.0,57151.0,0.087483]
[1725989282227,0.009,57153.0,57152.0,0.087481]
[1725989282424,0.009,57153.0,57152.0,0.175362]
[1725989282622,0.10487915,57159.0,57152.0,1.212401]
[1725989282923,0.1048304,57160.0,57158.0,0.0004]
[1725989283122,0.1048304,57160.0,57159.0,0.08787]
[1725989283316,0.1048304,57162.0,57161.0,0.087467]
[1725989283514,0.1048304,57162.0,57161.0,0.087867]
[1725989284422,0.1048304,57164.0,57161.0,0.0004]
[1725989284627,0.1048304,57164.0,57163.0,0.087864]
[1725989285231,0.1048304,57165.0,57164.0,0.087463]
[1725989285621,0.1048304,57165.0,57164.0,0.087863]
[1725989286525,0.1068304,57165.0,57164.0,0.087863]
[1725989287126,0.002,57165.0,57164.0,0.087863]
[1725989287530,0.1942914,57165.0,57164.0,0.087863]
[1725989288116,0.1942914,57165.0,57164.0,0.15712848]
[1725989288117,0.089461,57165.0,57164.0,0.15712848]
[1725989288322,0.176922,57165.0,57164.0,0.0004]
[1725989288512,0.089461,57165.0,57164.0,0.0004]
[1725989290120,0.089461,57165.0,57164.0,0.13981714]
[1725989290320,0.089461,57165.0,57164.0,0.087863]
[1725989290921,0.089461,57165.0,57164.0,0.15712848]
[1725989292018,0.089461,57165.0,57164.0,0.087863]
[1725989292414,0.002,57165.0,57164.0,0.087863]
[1725989292827,0.002,57165.0,57164.0,0.1571247]
[1725989293328,0.002,57165.0,57164.0,0.087863]
[1725989294231,0.002,57165.0,57164.0,0.15712617]
[1725989297027,0.002,57165.0,57164.0,0.087863]
[1725989297733,0.002,57165.0,57164.0,0.15710756]
[1725989298228,0.002,57165.0,57164.0,0.087863]
[1725989298527,0.002,57165.0,57164.0,0.15711097]
[1725989298825,0.002,57165.0,57164.0,0.15711504]
[1725989299028,0.002,57165.0,57164.0,0.087863]
[1725989299326,0.002,57165.0,57164.0,0.375326]
[1725989300417,0.002,57165.0,57164.0,0.175326]
[1725989302433,0.002,57165.0,57164.0,0.375326]
[1725989303127,0.002,57165.0,57164.0,0.462789]
[1725989303128,0.03578569,57165.0,57164.0,0.462789]
[1725989303328,0.13230335,57165.0,57164.0,1.587589]
[1725989303535,0.3239309,57165.0,57164.0,1.587589]
[1725989303724,0.13230335,57165.0,57164.0,1.587589]
[1725989303926,0.3068385,57165.0,57164.0,1.587589]
[1725989304533,0.2184655,57165.0,57164.0,1.70442716]
[1725989304834,0.06273197,57176.0,57164.0,1.70442716]
[1725989304835,0.02511937,57167.0,57166.0,0.17492]
[1725989305023,0.04282147,57171.0,57170.0,0.087454]
[1725989305334,0.19162755,57177.0,57176.0,0.087444]
[1725989305531,0.19162755,57177.0,57176.0,0.087844]
[1725989305725,0.087443,57177.0,57176.0,0.087444]
[1725989305936,0.09649379,57177.0,57175.0,0.087445]
[1725989306140,0.18433879,57176.0,57175.0,0.087445]
[1725989306556,0.18433879,57176.0,57170.0,0.0004]
[1725989306557,0.087446,57175.0,57170.0,0.0004]
[1725989306724,0.287852,57171.0,57170.0,0.0004]
[1725989307032,0.087458,57167.0,57166.0,0.0004]
[1725989307234,0.38395179,57167.0,57166.0,0.0004]
[1725989307436,0.38435179,57167.0,57166.0,0.0004]
[1725989308123,0.38435179,57167.0,57166.0,0.08746]
[1725989308124,0.09689379,57167.0,57166.0,0.08746]
[1725989308528,0.09989379,57167.0,57166.0,0.08746]
[1725989309744,0.18735179,57167.0,57166.0,0.08746]
[1725989310038,0.090858,57167.0,57166.0,0.08746]
[1725989310935,0.094858,57167.0,57166.0,0.08746]
[1725989311249,0.094858,57167.0,57166.0,0.1566308]
[1725989311540,0.094858,57167.0,57166.0,0.08746]
[1725989314341,0.08747,57159.0,57157.0,0.08651715]
[1725989314549,0.087475,57156.0,57154.0,0.08651715]
[1725989314741,0.087475,57156.0,57152.0,0.08651715]
[1725989314942,0.287478,57154.0,57153.0,0.06925612]
[1725989315138,0.08748,57153.0,57152.0,0.06925612]
[1725989315450,0.08788,57153.0,57152.0,0.06925612]
[1725989316141,0.087481,57152.0,57151.0,0.15673812]
[1725989316345,0.087881,57152.0,57151.0,0.15673812]
[1725989316740,0.087881,57152.0,57151.0,0.15668758]
[1725989316933,0.0004,57152.0,57151.0,0.15668758]
[1725989317243,0.0004,57158.0,57152.0,0.52492]
[1725989317444,0.0004,57158.0,57157.0,0.087473]
[1725989317645,0.0004,57158.0,57157.0,0.15663562]
[1725989317845,0.0004,57158.0,57157.0,0.087873]
[1725989318041,0.087872,57158.0,57157.0,0.0004]
[1725989318256,0.374944,57158.0,57157.0,0.0004]
[1725989319242,0.375944,57158.0,57157.0,0.0024]
[1725989319639,0.463416,57158.0,57157.0,0.0024]
[1725989319844,0.087483,57151.0,57145.0,0.05186858]
[1725989320048,0.0004,57146.0,57143.0,0.13936258]
[1725989320241,0.0004,57144.0,57143.0,0.087494]
[1725989321144,0.087498,57141.0,57140.0,0.05186858]
[1725989321348,0.087898,57141.0,57139.0,0.087501]
[1725989321550,0.087898,57141.0,57137.0,0.0048]
[1725989321551,0.087503,57138.0,57137.0,0.0048]
[1725989321747,0.087903,57138.0,57137.0,0.0048]
[1725989321943,0.087503,57138.0,57137.0,0.0048]
[1725989323249,0.088503,57138.0,57137.0,0.0058]
[1725989324354,0.001,57138.0,57137.0,0.093304]
[1725989324849,0.002,57138.0,57137.0,0.100304]
[1725989325255,0.087498,57141.0,57139.0,0.087501]
[1725989325758,0.087498,57141.0,57140.0,0.087899]
[1725989326459,0.088498,57141.0,57140.0,0.087899]
[1725989326751,0.089498,57141.0,57140.0,0.087899]
[1725989327943,0.089498,57141.0,57140.0,0.095899]
[1725989328353,0.089498,57141.0,57140.0,0.097899]
[1725989329355,0.002,57141.0,57140.0,0.097899]
[1725989330051,0.087501,57139.0,57138.0,0.0052]
[1725989330250,0.0004,57139.0,57138.0,0.0052]
[1725989330446,0.0004,57139.0,57138.0,0.092703]
[1725989331642,0.0014,57139.0,57138.0,0.092703]
[1725989332152,0.088901,57139.0,57138.0,0.092703]
[1725989332355,0.089901,57139.0,57138.0,0.092703]
[1725989332560,0.089901,57139.0,57138.0,0.0052]
[1725989333452,0.177402,57139.0,57138.0,0.0052]
[1725989334449,0.464903,57139.0,57138.0,0.0052]
[1725989337856,0.177402,57139.0,57138.0,0.0052]
[1725989339148,0.089901,57139.0,57138.0,0.0052]
[1725989341168,0.377402,57139.0,57138.0,0.0052]
[1725989341660,0.089901,57139.0,57138.0,0.0052]
[1725989341859,0.177402,57139.0,57138.0,0.0052]
[1725989342559,0.089901,57139.0,57138.0,0.0052]
[1725989343864,0.089901,57139.0,57138.0,0.092703]
[1725989344163,0.0024,57139.0,57138.0,0.092703]
[1725989344463,0.0024,57139.0,57138.0,0.16186562]
[1725989344765,0.0024,57139.0,57138.0,0.16180671]
[1725989345163,0.0024,57139.0,57138.0,0.092703]
[1725989345666,0.089901,57139.0,57138.0,0.16181972]
[1725989345851,0.089901,57139.0,57138.0,0.092703]
[1725989346055,0.089901,57139.0,57138.0,0.16181972]
[1725989347061,0.089901,57139.0,57138.0,0.092703]
[1725989347859,0.089901,57139.0,57138.0,0.16181424]
[1725989348065,0.089901,57139.0,57138.0,0.092703]
[1725989348265,0.089901,57139.0,57138.0,0.0052]
[1725989348765,0.089901,57139.0,57138.0,0.07435346]
[1725989349156,0.089901,57139.0,57138.0,0.0052]
[1725989349967,0.177402,57139.0,57138.0,0.0052]
[1725989350267,0.264903,57139.0,57138.0,0.0052]
[1725989350872,0.386403,57139.0,57138.0,0.0052]
[1725989351166,0.087515,57130.0,57129.0,0.08645927]
[1725989351467,0.087515,57130.0,57117.0,0.32035371]
[1725989351468,0.087518,57128.0,57127.0,0.08645927]
[1725989351776,0.087519,57127.0,57126.0,0.08645927]
[1725989351960,0.205519,57127.0,57126.0,0.21180337]
[1725989352156,0.205519,57127.0,57126.0,0.08645927]
[1725989352359,0.087521,57126.0,57125.0,0.08645927]
[1725989352560,0.087522,57125.0,57124.0,0.08645927]
[1725989352854,0.088322,57125.0,57124.0,0.21114738]
[1725989353264,0.088322,57125.0,57124.0,0.41098478]
[1725989353464,0.088322,57125.0,57124.0,0.2]
[1725989353663,0.088322,57125.0,57124.0,0.28654604]
[1725989354061,0.088322,57125.0,57124.0,0.2]
[1725989354466,0.087524,57124.0,57123.0,0.08654604]
[1725989354668,0.088324,57124.0,57123.0,0.08654604]
[1725989354871,0.0008,57124.0,57123.0,0.087526]
[1725989355063,0.0008,57124.0,57123.0,0.29853636]
[1725989355263,0.0008,57124.0,57123.0,0.087526]
[1725989355858,0.0018,57124.0,57123.0,1.212686]
[1725989356065,0.0018,57124.0,57123.0,1.26459373]
[1725989356264,0.0018,57124.0,57123.0,1.212686]
[1725989356573,0.0028,57124.0,57123.0,1.212686]
[1725989356973,0.0028,57124.0,57123.0,0.087526]
[1725989357361,0.0028,57124.0,57123.0,1.26459373]
[1725989358771,0.0028,57124.0,57123.0,0.087526]
[1725989361265,0.0028,57124.0,57123.0,0.262578]
[1725989361469,0.0287418,57130.0,57129.0,0.087516]
[1725989361664,0.087512,57132.0,57131.0,0.087513]
[1725989362080,0.087508,57135.0,57134.0,0.087507]
[1725989363166,0.088508,57135.0,57134.0,0.1567173]
[1725989363882,0.089508,57135.0,57134.0,0.1567173]
[1725989364384,0.089508,57135.0,57134.0,0.0692103]
[1725989364583,0.089508,57135.0,57134.0,0.087509]
[1725989364874,0.17502,57133.0,57132.0,0.0692103]
[1725989365076,0.002,57135.0,57128.0,0.08654604]
[1725989365077,0.175024,57132.0,57131.0,0.0692103]
[1725989365276,0.175824,57132.0,57131.0,0.0692103]
[1725989365470,0.175824,57132.0,57125.0,0.087522]
[1725989365471,0.087516,57129.0,57128.0,0.0692103]
[1725989365678,0.08752,57128.0,57127.0,0.087519]
[1725989366185,0.08752,57128.0,57124.0,0.08814604]
[1725989366186,0.087522,57126.0,57125.0,0.087521]
[1725989366371,0.088322,57126.0,57125.0,0.087521]
[1725989366566,0.087522,57126.0,57125.0,0.17406704]
[1725989367683,0.087522,57126.0,57125.0,0.087521]
[1725989368581,0.088522,57126.0,57125.0,0.001]
[1725989368980,0.088522,57126.0,57125.0,0.0702016]
[1725989369185,0.177044,57126.0,57125.0,0.002]
[1725989369381,0.177044,57126.0,57125.0,0.05390665]
[1725989369686,0.089522,57126.0,57125.0,0.002]
[1725989369873,0.088522,57126.0,57125.0,0.001]
[1725989370071,0.089522,57126.0,57125.0,0.002]
[1725989370982,0.089522,57126.0,57125.0,0.05390665]
[1725989371176,0.177044,57126.0,57125.0,0.002]
[1725989371581,0.176044,57126.0,57125.0,0.001]
[1725989371782,0.177044,57126.0,57125.0,0.002]
[1725989372778,0.089522,57126.0,57125.0,0.089522]
[1725989372979,0.04573099,57126.0,57125.0,0.089522]
[1725989373981,0.04573099,57126.0,57125.0,0.0538754]
[1725989374187,0.04573099,57126.0,57125.0,0.002]
[1725989374392,0.33325199,57126.0,57125.0,0.002]
[1725989375277,0.42077299,57126.0,57125.0,0.002]
[1725989375991,0.33325199,57126.0,57125.0,0.002]
[1725989376283,1.54493299,57126.0,57125.0,0.001]
[1725989376481,1.45841199,57126.0,57125.0,0.002]
[1725989376680,1.54593299,57126.0,57125.0,0.002]
[1725989376989,0.52516,57125.0,57110.0,0.05189817]
[1725989377176,0.087547,57109.0,57108.0,0.05189817]
[1725989377377,0.088347,57109.0,57108.0,0.05189817]
[1725989377681,0.0008,57111.0,57108.0,0.13944717]
[1725989377884,0.087546,57110.0,57108.0,0.13944717]
[1725989378187,0.087549,57108.0,57107.0,0.05189817]
[1725989378481,0.001,57109.0,57108.0,0.001]
[1725989378689,0.088547,57109.0,57108.0,0.001]
[1725989378888,0.0008,57111.0,57108.0,0.2]
[1725989379085,0.0008,57111.0,57110.0,0.087545]
[1725989379783,0.0008,57111.0,57110.0,0.212945]
[1725989380490,0.0008,57111.0,57110.0,0.087545]
[1725989381389,0.0018,57111.0,57110.0,0.088545]
[1725989381689,0.0028,57111.0,57110.0,0.088545]
[1725989385090,0.0028,57111.0,57110.0,0.17609]
[1725989385391,0.341921,57126.0,57123.0,0.087525]
[1725989385392,0.2544,57126.0,57123.0,0.087525]
[1725989385594,0.087524,57124.0,57123.0,0.087525]
[1725989385790,0.2544,57126.0,57120.0,0.2]
[1725989386088,0.087521,57127.0,57126.0,0.087521]
[1725989387595,0.11921706,57127.0,57126.0,0.087521]
[1725989388390,0.03169606,57127.0,57126.0,0.087521]
[1725989388591,0.087511,57133.0,57124.0,0.2]
[1725989388900,0.016,57127.0,57126.0,0.087521]
[1725989389191,0.007,57127.0,57126.0,0.13937079]
[1725989389392,0.014,57127.0,57126.0,0.13937079]
[1725989390296,0.007,57127.0,57126.0,0.13937079]
[1725989390496,0.013,57127.0,57126.0,0.13937079]
[1725989391197,0.008,57127.0,57126.0,0.14037079]
[1725989391995,0.001,57127.0,57126.0,0.14037079]
[1725989392390,0.088519,57127.0,57126.0,0.14037079]
[1725989392593,0.088519,57127.0,57126.0,0.14237079]
[1725989392594,0.089519,57127.0,57126.0,0.14237079]
[1725989393097,0.002,57127.0,57126.0,0.090521]
[1725989393492,0.07867041,57127.0,57126.0,0.090521]
[1725989394507,0.07767041,57127.0,57126.0,0.088521]
[1725989394703,0.07867041,57127.0,57126.0,0.090521]
[1725989395006,0.0358092,57127.0,57126.0,0.178042]
[1725989395214,0.044859,57127.0,57126.0,0.090521]
[1725989395419,0.12412515,57127.0,57126.0,0.090521]
[1725989395610,0.15693435,57127.0,57126.0,0.176042]
[1725989395808,0.15793435,57127.0,57126.0,0.178042]
[1725989396114,0.15793435,57127.0,57126.0,0.090521]
[1725989397003,0.078669,57127.0,57126.0,0.090521]
[1725989397318,0.078669,57127.0,57126.0,0.003]
[1725989397504,0.21824665,57127.0,57126.0,0.090521]
[1725989397699,0.21824665,57127.0,57126.0,0.290521]
[1725989397905,0.078669,57127.0,57126.0,0.290521]
[1725989398607,0.078669,57127.0,57126.0,0.378042]
[1725989399110,0.07866833,57127.0,57126.0,0.378042]
[1725989399513,0.07766833,57127.0,57126.0,0.377042]
[1725989399813,0.07866833,57127.0,57126.0,0.378042]
[1725989400411,0.07866833,57127.0,57126.0,0.289521]
[1725989400412,0.001,57127.0,57126.0,0.289521]
[1725989400619,0.089519,57127.0,57126.0,0.15969084]
[1725989400916,0.089519,57127.0,57126.0,0.090521]
[1725989401104,0.088519,57127.0,57126.0,0.088521]
[1725989401305,0.089519,57127.0,57126.0,0.090521]
[1725989401512,0.002,57127.0,57126.0,0.34240398]
[1725989402315,0.002,57127.0,57126.0,0.290521]
[1725989402515,0.001,57127.0,57126.0,0.34240982]
[1725989402707,0.4548,57139.0,57138.0,0.087503]
[1725989402904,0.15992878,57139.0,57138.0,0.287503]
[1725989403107,0.24742978,57139.0,57138.0,0.287503]
[1725989403306,0.24742978,57139.0,57138.0,0.287903]
[1725989404002,0.15992878,57139.0,57138.0,0.287903]
[1725989404425,0.16192878,57139.0,57138.0,0.287903]
[1725989404923,0.16492878,57139.0,57138.0,0.287903]
[1725989405110,0.005,57139.0,57138.0,0.375406]
[1725989405311,0.005,57139.0,57138.0,0.42728163]
[1725989405514,0.005,57139.0,57138.0,0.287903]
[1725989406110,0.092501,57139.0,57138.0,0.0004]
[1725989406322,0.180002,57139.0,57138.0,0.0004]
[1725989406617,0.583502,57139.0,57138.0,0.0004]
[1725989406807,0.783502,57139.0,57138.0,0.0004]
[1725989407919,0.496001,57139.0,57138.0,0.0004]
[1725989408314,0.62638062,57139.0,57138.0,0.0004]
[1725989408520,0.78330287,57139.0,57138.0,0.0004]
[1725989408723,0.62638062,57139.0,57138.0,0.0004]
[1725989408911,0.91388162,57139.0,57138.0,0.0004]
[1725989409221,0.62638062,57139.0,57138.0,0.0004]
[1725989409926,0.21436194,57139.0,57138.0,0.287903]
[1725989410122,0.29230859,57139.0,57138.0,0.287903]
[1725989410318,0.13537775,57139.0,57138.0,0.287903]
[1725989410515,0.08166194,57139.0,57138.0,0.287903]
[1725989410711,0.22117102,57139.0,57138.0,1.500446]
[1725989410917,0.16915718,57139.0,57138.0,0.0004]
[1725989411218,0.31037275,57139.0,57138.0,0.0004]
[1725989411417,0.48502857,57139.0,57138.0,0.0004]
[1725989411920,0.31037275,57139.0,57138.0,0.0004]
[1725989412421,0.087513,57131.0,57130.0,0.087513]
[1725989412625,0.087913,57131.0,57130.0,0.087513]
[1725989412829,0.12171847,57131.0,57130.0,0.087513]
[1725989413124,0.15748266,57131.0,57130.0,0.087513]
[1725989413617,0.15748266,57131.0,57130.0,0.089513]
[1725989413618,0.13177075,57131.0,57130.0,0.089513]
[1725989414424,0.30632065,57131.0,57130.0,0.089513]
[1725989414625,0.30632065,57131.0,57130.0,0.614633]
[1725989414920,0.30632065,57131.0,57130.0,1.304148]
[1725989414921,0.07906669,57131.0,57130.0,1.304148]
[1725989415326,0.15724411,57134.0,57133.0,0.17502]
[1725989415516,0.15724411,57134.0,57133.0,0.97502]
[1725989415722,0.15724411,57134.0,57133.0,1.5005]
[1725989416232,0.17453295,57137.0,57136.0,0.087506]
[1725989416526,0.17453295,57137.0,57136.0,0.087906]
[1725989417329,0.17453295,57137.0,57136.0,0.21145141]
[1725989417515,0.17453295,57137.0,57136.0,0.21245141]
[1725989417914,0.17453295,57137.0,57136.0,0.088906]
[1725989418518,0.26203695,57137.0,57136.0,0.21281285]
[1725989418724,0.17453295,57137.0,57136.0,0.088906]
[1725989419525,0.17453295,57137.0,57136.0,0.17555615]
[1725989419732,0.17453295,57137.0,57136.0,0.29960297]
[1725989419920,0.17453295,57137.0,57136.0,0.21295282]
[1725989420931,0.17453295,57137.0,57136.0,0.30045882]
[1725989421226,0.087499,57141.0,57140.0,0.087498]
[1725989421524,0.087496,57143.0,57142.0,0.087495]
[1725989421724,0.087496,57143.0,57142.0,0.087895]
[1725989422118,0.44206705,57145.0,57144.0,0.087493]
[1725989422433,0.52839904,57145.0,57144.0,0.1398551]
[1725989422632,0.52839904,57145.0,57144.0,0.087893]
[1725989423043,0.52839904,57145.0,57144.0,0.0004]
[1725989423044,1.13845642,57145.0,57144.0,0.0004]
[1725989423230,0.087508,57135.0,57134.0,0.087509]
[1725989423525,0.12170963,57135.0,57134.0,0.087509]
[1725989423728,0.087514,57132.0,57131.0,0.087513]
[1725989423921,0.087518,57128.0,57126.0,0.08752]
[1725989424121,0.03420163,57127.0,57121.0,0.2]
[1725989424321,0.03380163,57126.0,57125.0,0.287522]
[1725989424525,0.13036483,57126.0,57125.0,0.287522]
[1725989424919,0.03380163,57126.0,57125.0,0.287522]
[1725989425827,0.03380163,57126.0,57125.0,0.290522]
[1725989425828,0.03480163,57126.0,57125.0,0.290522]
[1725989426028,0.13136483,57126.0,57125.0,0.290522]
[1725989426231,0.13136483,57126.0,57125.0,0.978044]
[1725989426529,0.1323836,57126.0,57125.0,1.506204]
[1725989426922,0.1323836,57126.0,57125.0,0.906204]
[1725989427123,0.1323836,57126.0,57125.0,0.381044]
[1725989427331,0.1323836,57126.0,57125.0,0.906204]
[1725989428127,0.15928534,57126.0,57125.0,1.506204]
[1725989428318,0.1323836,57126.0,57125.0,0.381044]
[1725989428520,0.1323836,57126.0,57125.0,0.906204]
[1725989428823,0.1323836,57126.0,57125.0,0.293522]
[1725989429029,0.30714622,57126.0,57125.0,0.293522]
[1725989431027,0.30714622,57126.0,57125.0,0.41767186]
[1725989431028,0.17676262,57126.0,57125.0,0.41767186]
[1725989431233,0.002,57126.0,57125.0,0.65308619]
[1725989431530,0.002,57126.0,57125.0,1.17814085]
[1725989431733,0.0004,57132.0,57131.0,0.287513]
[1725989431924,0.0004,57132.0,57131.0,0.41197395]
[1725989432929,0.0014,57132.0,57131.0,0.41497395]
[1725989433135,0.0024,57132.0,57131.0,0.41797395]
[1725989433829,0.089912,57132.0,57131.0,0.21797395]
[1725989434020,0.089912,57132.0,57131.0,0.30454518]
[1725989434218,0.089912,57132.0,57131.0,0.18052153]
[1725989435039,0.0024,57132.0,57131.0,0.2179846]
[1725989436826,0.0024,57132.0,57131.0,0.3054976]
[1725989437224,0.0024,57132.0,57131.0,0.7198976]
[1725989438332,0.0024,57132.0,57131.0,0.2179846]
[1725989438531,0.0024,57132.0,57131.0,0.32192349]
[1725989440138,0.0024,57132.0,57131.0,0.2179846]
[1725989441128,0.0024,57132.0,57131.0,0.3054976]
[1725989441438,0.0024,57132.0,57131.0,0.30543675]
[1725989441824,0.1373,57141.0,57140.0,0.087499]
[1725989442026,0.2667,57149.0,57147.0,0.087487]
[1725989442231,0.087487,57148.0,57147.0,0.087487]
[1725989442434,0.4005,57149.0,57148.0,0.087487]
[1725989442634,0.4005,57149.0,57148.0,0.0004]
[1725989442825,0.487986,57149.0,57148.0,0.05233096]
[1725989443028,0.487986,57149.0,57148.0,0.087887]
[1725989443225,0.487986,57149.0,57148.0,0.0004]
[1725989444046,0.487986,57149.0,57148.0,0.05231746]
[1725989444232,0.500986,57149.0,57148.0,0.05231746]
[1725989444422,0.500986,57149.0,57148.0,0.0004]
[1725989444837,0.499986,57149.0,57148.0,0.0004]
[1725989445131,0.513986,57149.0,57148.0,0.0004]
[1725989445737,0.513986,57149.0,57148.0,0.05231746]
[1725989446130,0.513986,57149.0,57147.0,0.087488]
[1725989446131,0.087487,57148.0,57147.0,0.0396963]
[1725989446438,0.28099184,57148.0,57147.0,0.0396963]
[1725989446638,0.28099322,57148.0,57147.0,0.0396963]
[1725989447139,0.19350622,57148.0,57147.0,0.0396963]
[1725989447337,0.19350622,57148.0,57147.0,0.2396963]
[1725989447928,0.20650622,57148.0,57147.0,0.2396963]
[1725989448129,0.29399322,57148.0,57147.0,0.2396963]
[1725989448533,0.30499322,57148.0,57147.0,0.2396963]
[1725989449242,0.34672111,57148.0,57147.0,0.2396963]
[1725989449543,0.15475166,57148.0,57147.0,0.2396963]
[1725989450243,0.1010455,57148.0,57147.0,0.2396963]
[1725989451348,0.3118081,57148.0,57147.0,0.3271853]
[1725989451643,0.1010455,57148.0,57147.0,0.3271853]
[1725989452447,0.0244,57148.0,57147.0,0.3271853]
[1725989452645,0.15706236,57151.0,57150.0,0.174968]
[1725989452946,0.17451373,57154.0,57152.0,0.087481]
[1725989453133,0.17451373,57154.0,57153.0,0.1571436]
[1725989454246,0.17451373,57154.0,57153.0,0.08788]
[1725989454841,0.18451373,57154.0,57153.0,0.2446236]
[1725989455046,0.18451373,57154.0,57153.0,0.17536]
[1725989455542,0.18451373,57154.0,57153.0,0.17636]
[1725989455748,0.19751373,57154.0,57153.0,0.17736]
[1725989455940,0.19196945,57157.0,57156.0,0.087475]
[1725989456239,0.19196945,57157.0,57156.0,0.35682881]
[1725989456443,0.19196945,57157.0,57156.0,1.50023]
[1725989456635,0.19196945,57157.0,57156.0,0.90023]
[1725989457643,0.19196945,57157.0,57156.0,0.287875]
[1725989457836,0.27944245,57157.0,57156.0,0.06931123]
[1725989458031,0.27944245,57157.0,57156.0,0.0014]
[1725989458032,0.56791545,57157.0,57156.0,0.0014]
[1725989458237,0.56891545,57157.0,57156.0,0.0024]
[1725989458449,0.36891545,57157.0,57156.0,0.0024]
[1725989459845,0.39979405,57157.0,57156.0,0.0024]
[1725989461542,0.08748,57153.0,57152.0,0.087481]
[1725989461839,0.2821,57156.0,57155.0,0.087477]
[1725989462041,0.2821,57156.0,57155.0,0.287877]
[1725989462452,0.0328786,57157.0,57156.0,0.087475]
[1725989462453,0.002,57157.0,57156.0,0.087475]
[1725989462647,0.1308,57164.0,57163.0,0.087464]
[1725989462958,0.1308,57164.0,57163.0,0.287864]
[1725989463257,0.1308,57164.0,57163.0,0.287464]
[1725989463743,0.218263,57164.0,57163.0,0.2]
[1725989464147,0.24940642,57164.0,57163.0,0.2]
[1725989464452,0.087475,57156.0,57155.0,0.001]
[1725989464657,0.087483,57151.0,57150.0,0.2]
[1725989464952,0.087883,57151.0,57150.0,0.2]
[1725989465247,0.224183,57151.0,57150.0,0.2]
[1725989466446,0.226183,57151.0,57150.0,0.2]
[1725989466856,0.226183,57151.0,57146.0,0.2]
[1725989466857,0.087489,57147.0,57146.0,0.2]
[1725989467246,0.087889,57147.0,57146.0,0.2]
[1725989468065,0.22735978,57147.0,57146.0,0.28849]
[1725989468253,0.30400577,57147.0,57146.0,0.28849]
[1725989468554,0.30400577,57147.0,57146.0,0.29049]
[1725989469251,0.16453499,57147.0,57146.0,0.29049]
[1725989469451,0.16453499,57147.0,57146.0,0.203]
[1725989469953,0.30573041,57147.0,57146.0,0.203]
[1725989470351,0.087503,57138.0,57137.0,0.2]
[1725989470654,0.16455285,57138.0,57137.0,0.2]
[1725989470849,0.37525768,57138.0,57137.0,0.2]
[1725989471354,0.74330638,57138.0,57137.0,0.2]
[1725989472250,0.37525337,57138.0,57137.0,0.2]
[1725989472453,0.28775037,57138.0,57137.0,0.287504]
[1725989472652,0.07704985,57138.0,57137.0,0.287504]
[1725989473054,0.21656217,57138.0,57137.0,0.293504]
[1725989473256,0.21656217,57138.0,57137.0,0.298504]
[1725989473448,0.21656833,57138.0,57137.0,0.298504]
[1725989473645,0.30407133,57138.0,57137.0,0.211]
[1725989473961,0.30407133,57138.0,57124.0,0.087523]
[1725989473962,0.087513,57131.0,57130.0,0.2]
[1725989474144,0.12206393,57131.0,57130.0,0.287515]
[1725989474349,0.03380285,57131.0,57130.0,0.287515]
[1725989474552,0.03380552,57132.0,57130.0,0.2]
[1725989474855,0.03380552,57131.0,57130.0,0.2]
[1725989475049,0.087509,57134.0,57133.0,0.08751]
[1725989475251,0.087509,57134.0,57133.0,0.08791]
[1725989475549,0.087509,57134.0,57133.0,0.13969831]
[1725989476354,0.087509,57134.0,57133.0,0.0064]
[1725989476852,0.087509,57134.0,57133.0,0.0134]
[1725989477753,1.587607,57134.0,57133.0,0.0134]
[1725989477962,0.175042,57126.0,57125.0,0.002]
[1725989478148,0.375442,57126.0,57125.0,0.002]
[1725989478351,1.213081,57126.0,57125.0,0.002]
[1725989478952,0.087921,57126.0,57125.0,0.002]
[1725989479157,1.213081,57126.0,57125.0,0.002]
[1725989479462,0.089921,57126.0,57125.0,0.03]
[1725989480151,0.04612898,57126.0,57125.0,0.117522]
[1725989480351,0.04612898,57126.0,57125.0,0.03]
[1725989481256,1.17128898,57126.0,57125.0,0.03]
[1725989481446,1.25880998,57126.0,57125.0,0.03]
[1725989481651,1.12756,57126.0,57115.0,0.087537]